{"text_format":"3","workbook":"xlsx","n_sheets":2,"sheets":["Resumo do Orçamento","Detalhes do Orçamento"],"not_rendered":{"images":1,"defined_names":1},"read":"whole","date_system":"1900"}

{"sheet":"Resumo do Orçamento","index":0,"n_rows":28,"n_cols":7,"rows_kept":28}
[{"$nulls":6}," "]
[]
[null,"ORÇAMENTO TOTAL DO CASAMENTO",{"v":20000,"d":"20,000 €"}]
[]
[null,"DESPESAS","Alocação \n%","Orçamento alocado","Estimados \nCustos","Reais \nCustos"]
[null,"Copo-de-Água",{"v":0.5,"d":"50%"},{"$f":"Orçamento_Total_do_Casamento*'Resumo do Orçamento'!$C6","v":{"v":10000,"d":"10,000 €"}},{"$f":"Tabela_Festa[[#Totals],[Custos Estimados]]","v":{"v":0,"d":"0 €"}},{"$f":"Tabela_Festa[[#Totals],[Custos Reais]]","v":{"v":0,"d":"0 €"}}]
[null,"Vestuário",{"v":0.1,"d":"10%"},{"$f":"Orçamento_Total_do_Casamento*'Resumo do Orçamento'!$C7","v":{"v":2000,"d":"2,000 €"}},{"$f":"Tabela_Roupa[[#Totals],[Custos Estimados]]","v":{"v":0,"d":"0 €"}},{"$f":"Tabela_Roupa[[#Totals],[Custos Reais]]","v":{"v":0,"d":"0 €"}}]
[null,"Flores e Decorações",{"v":0.1,"d":"10%"},{"$f":"Orçamento_Total_do_Casamento*'Resumo do Orçamento'!$C8","v":{"v":2000,"d":"2,000 €"}},{"$f":"Tabela_FloresEDecorações[[#Totals],[Custos Estimados]]","v":{"v":0,"d":"0 €"}},{"$f":"Tabela_FloresEDecorações[[#Totals],[Custos Reais]]","v":{"v":0,"d":"0 €"}}]
[null,"Música",{"v":0.1,"d":"10%"},{"$f":"Orçamento_Total_do_Casamento*'Resumo do Orçamento'!$C9","v":{"v":2000,"d":"2,000 €"}},{"$f":"Tabela_Música[[#Totals],[Custos Estimados]]","v":{"v":0,"d":"0 €"}},{"$f":"Tabela_Música[[#Totals],[Custos Reais]]","v":{"v":0,"d":"0 €"}}]
[null,"Fotografias e Vídeo",{"v":0.1,"d":"10%"},{"$f":"Orçamento_Total_do_Casamento*'Resumo do Orçamento'!$C10","v":{"v":2000,"d":"2,000 €"}},{"$f":"Tabela_FotografiasEVídeo[[#Totals],[Custos Estimados]]","v":{"v":0,"d":"0 €"}},{"$f":"Tabela_FotografiasEVídeo[[#Totals],[Custos Reais]]","v":{"v":0,"d":"0 €"}}]
[null,"Favores e Presentes",{"v":0.03,"d":"3%"},{"$f":"Orçamento_Total_do_Casamento*'Resumo do Orçamento'!$C11","v":{"v":600,"d":"600 €"}},{"$f":"Tabela_BrindesEPresentes[[#Totals],[Custos Estimados]]","v":{"v":0,"d":"0 €"}},{"$f":"Tabela_BrindesEPresentes[[#Totals],[Custos Reais]]","v":{"v":0,"d":"0 €"}}]
[null,"Cerimónia",{"v":0.02,"d":"2%"},{"$f":"Orçamento_Total_do_Casamento*'Resumo do Orçamento'!$C12","v":{"v":400,"d":"400 €"}},{"$f":"Tabela_Cerimónia[[#Totals],[Custos Estimados]]","v":{"v":0,"d":"0 €"}},{"$f":"Tabela_Cerimónia[[#Totals],[Custos Reais]]","v":{"v":0,"d":"0 €"}}]
[null,"Artigos de Papelaria",{"v":0.02,"d":"2%"},{"$f":"Orçamento_Total_do_Casamento*'Resumo do Orçamento'!$C13","v":{"v":400,"d":"400 €"}},{"$f":"Tabela_Convites[[#Totals],[Custos Estimados]]","v":{"v":0,"d":"0 €"}},{"$f":"Tabela_Convites[[#Totals],[Custos Reais]]","v":{"v":0,"d":"0 €"}}]
[null,"Alianças",{"v":0.02,"d":"2%"},{"$f":"Orçamento_Total_do_Casamento*'Resumo do Orçamento'!$C14","v":{"v":400,"d":"400 €"}},{"$f":"Tabela_Alianças[[#Totals],[Custos Estimados]]","v":{"v":0,"d":"0 €"}},{"$f":"Tabela_Alianças[[#Totals],[Custos Reais]]","v":{"v":0,"d":"0 €"}}]
[null,"Transportes",{"v":0.01,"d":"1%"},{"$f":"Orçamento_Total_do_Casamento*'Resumo do Orçamento'!$C15","v":{"v":200,"d":"200 €"}},{"$f":"Tabela_Transporte[[#Totals],[Custos Estimados]]","v":{"v":0,"d":"0 €"}},{"$f":"Tabela_Transporte[[#Totals],[Custos Reais]]","v":{"v":0,"d":"0 €"}}]
[null,"Total",{"$f":"SUM(C6:C15)","v":{"v":1,"d":"100%"}},{"$f":"SUM(D6:D15)","v":{"v":20000,"d":"20,000 €"}},{"v":0,"d":"0 €"},{"v":0,"d":"0 €"}]
[]
[null,"CONTRIBUIÇÕES"]
[null,"Origem dos Fundos","Contribuição"]
[null,"Poupanças",{"v":10000,"d":"10,000 €"}]
[null,"Pais do Parceiro 1",{"v":4000,"d":"4,000 €"}]
[null,"Avós do Parceiro 1",{"v":2000,"d":"2,000 €"}]
[null,"Pais do Parceiro 2",{"v":4000,"d":"4,000 €"}]
[null,"Avós do Parceiro 2",{"v":4000,"d":"4,000 €"}]
[null,"Outras contribuições",{"v":2000,"d":"2,000 €"}]
[null,"Total",{"$f":"SUBTOTAL(109,Tabela_Contribuições[Contribuição])","v":{"v":26000,"d":"26,000 €"}}]
[]
[null,{"$f":"IF(Tabela_Contribuições[[#Totals],[Contribuição]]<Orçamento_Total_do_Casamento,\"Diferença para compensar\",\"Fundos adicionais disponíveis\")","v":"Fundos adicionais disponíveis"},{"$f":"IF(Tabela_Contribuições[[#Totals],[Contribuição]]<Orçamento_Total_do_Casamento,Orçamento_Total_do_Casamento-Tabela_Contribuições[[#Totals],[Contribuição]],Tabela_Contribuições[[#Totals],[Contribuição]]-Orçamento_Total_do_Casamento)","v":{"v":6000,"d":"6,000 €"}}]

{"sheet":"Detalhes do Orçamento","index":1,"n_rows":80,"n_cols":4,"rows_kept":80}
[]
[null,"COPO-DE-ÁGUA","Custos Estimados","Custos Reais"]
[null,"Local e alugueres"]
[null,"Comida e serviço"]
[null,"Bebidas"]
[null,"Bolo"]
[null,"Diversos"]
[null,"Total",{"$f":"SUBTOTAL(109,Tabela_Festa[Custos Estimados])","v":{"v":0,"d":"0.00 €"}},{"$f":"SUBTOTAL(109,Tabela_Festa[Custos Reais])","v":{"v":0,"d":"0.00 €"}}]
[]
[null,"VESTUÁRIO","Custos Estimados","Custos Reais"]
[null,"Smoking, fato e/ou vestidos"]
[null,"Alterações"]
[null,"Véu e grinalda"]
[null,"Acessórios"]
[null,"Cabelo e maquilhagem"]
[null,"Diversos"]
[null,"Total",{"$f":"SUBTOTAL(109,Tabela_Roupa[Custos Estimados])","v":{"v":0,"d":"0.00 €"}},{"$f":"SUBTOTAL(109,Tabela_Roupa[Custos Reais])","v":{"v":0,"d":"0.00 €"}}]
[]
[null,"FLORES E DECORAÇÕES","Custos Estimados","Custos Reais"]
[null,"Disposições florais para a cerimônia"]
[null,"Botões e cesto da menina das flores"]
[null,"Almofada para alianças"]
[null,"Bouquets"]
[null,"Flores de Lapela"]
[null,"Ramalhetes (Acessório)"]
[null,"Decorações do copo-de-água"]
[null,"Iluminação"]
[null,"Diversos"]
[null,"Total",{"$f":"SUBTOTAL(109,Tabela_FloresEDecorações[Custos Estimados])","v":{"v":0,"d":"0.00 €"}},{"$f":"SUBTOTAL(109,Tabela_FloresEDecorações[Custos Reais])","v":{"v":0,"d":"0.00 €"}}]
[]
[null,"MÚSICA","Custos Estimados","Custos Reais"]
[null,"Músicos para a cerimônia"]
[null,"Músicos para a hora de cocktails"]
[null,"Banda para o copo-de-água, DJ ou animação"]
[null,"Aluguer de sistema de som ou de pista de dança"]
[null,"Diversos"]
[null,"Total",{"$f":"SUBTOTAL(109,Tabela_Música[Custos Estimados])","v":{"v":0,"d":"0.00 €"}},{"$f":"SUBTOTAL(109,Tabela_Música[Custos Reais])","v":{"v":0,"d":"0.00 €"}}]
[]
[null,"FOTOGRAFIAS E VÍDEO","Custos Estimados","Custos Reais"]
[null,"Fotografia"]
[null,"Vídeos"]
[null,"Impressão e álbuns adicionais"]
[null,"Diversos"]
[null,"Total",{"$f":"SUBTOTAL(109,Tabela_FotografiasEVídeo[Custos Estimados])","v":{"v":0,"d":"0.00 €"}},{"$f":"SUBTOTAL(109,Tabela_FotografiasEVídeo[Custos Reais])","v":{"v":0,"d":"0.00 €"}}]
[]
[null,"FAVORES E PRESENTES","Custos Estimados","Custos Reais"]
[null,"Presentes de boas-vindas"]
[null,"Presentes para a festa"]
[null,"Diversos"]
[null,"Total",{"$f":"SUBTOTAL(109,Tabela_BrindesEPresentes[Custos Estimados])","v":{"v":0,"d":"0.00 €"}},{"$f":"SUBTOTAL(109,Tabela_BrindesEPresentes[Custos Reais])","v":{"v":0,"d":"0.00 €"}}]
[]
[null,"CERIMÓNIA","Custos Estimados","Custos Reais"]
[null,"Taxa do local"]
[null,"Taxa para o oficiante ou donativo à igreja"]
[null,"Diversos"]
[null,"Total",{"$f":"SUBTOTAL(109,Tabela_Cerimónia[Custos Estimados])","v":{"v":0,"d":"0.00 €"}},{"$f":"SUBTOTAL(109,Tabela_Cerimónia[Custos Reais])","v":{"v":0,"d":"0.00 €"}}]
[]
[null,"ARTIGOS DE PAPELARIA","Custos Estimados","Custos Reais"]
[null,"Cartões de lembrete"]
[null,"Convites e confirmações de presença"]
[null,"Programas"]
[null,"Cartões de assentos e lugares"]
[null,"Menus"]
[null,"Notas de agradecimento"]
[null,"Correio"]
[null,"Diversos"]
[null,"Total",{"$f":"SUBTOTAL(109,Tabela_Convites[Custos Estimados])","v":{"v":0,"d":"0.00 €"}},{"$f":"SUBTOTAL(109,Tabela_Convites[Custos Reais])","v":{"v":0,"d":"0.00 €"}}]
[]
[null,"ALIANÇAS","Custos Estimados","Custos Reais"]
[null,"Alianças"]
[null,"Acessórios para alianças"]
[null,"Total",{"$f":"SUBTOTAL(109,Tabela_Alianças[Custos Estimados])","v":{"v":0,"d":"0.00 €"}},{"$f":"SUBTOTAL(109,Tabela_Alianças[Custos Reais])","v":{"v":0,"d":"0.00 €"}}]
[]
[null,"TRANSPORTES","Custos Estimados","Custos Reais"]
[null,"Aluguer de carro principal"]
[null,"Aluguer de carro para convidados"]
[null,"Transporte para convidados de fora da cidade"]
[null,"Arrumador"]
[null,"Diversos"]
[null,"Total",{"$f":"SUBTOTAL(109,Tabela_Transporte[Custos Estimados])","v":{"v":0,"d":"0.00 €"}},{"$f":"SUBTOTAL(109,Tabela_Transporte[Custos Reais])","v":{"v":0,"d":"0.00 €"}}]